bitfinex/quotes_ETHUSD_20251125
["timestamp","ask_amount","ask_price","bid_price","bid_amount"]
[1764108060743,4.92317762,2929.4,2929.3,0.001]
[1764108060959,5.65382263,2929.4,2929.3,0.001]
[1764108061133,12.73997363,2929.4,2929.3,0.001]
[1764108061323,12.73997363,2929.4,2927.7,3.41563124]
[1764108061324,13.20675338,2929.4,2927.7,3.41563124]
[1764108061525,0.3174093,2929.3,2927.7,10.24693226]
[1764108061736,0.3174093,2929.2,2927.7,6.83128175]
[1764108061942,0.7999093,2929.1,2927.7,3.41563124]
[1764108062138,0.5354093,2929.0,2927.2,0.218]
[1764108062388,13.6574706,2928.8,2927.0,3.41636004]
[1764108062568,13.6574706,2928.8,2925.2,5.47152702]
[1764108062569,0.3174093,2928.7,2926.9,3.41652583]
[1764108062780,0.3174093,2928.7,2925.9,0.35280966]
[1764108062781,5.38676,2928.5,2925.9,0.35280966]
[1764108062995,0.72559411,2928.2,2926.0,15.03868844]
[1764108063193,0.5354093,2928.1,2926.4,4.78578347]
[1764108063401,0.218,2928.1,2926.5,0.72559411]
[1764108063572,0.7005,2928.1,2926.6,0.09436]
[1764108063895,0.72559411,2928.5,2927.4,0.001]
[1764108063896,0.218,2928.0,2927.4,0.001]
[1764108064099,0.218,2927.9,2927.4,0.001]
[1764108064266,0.4825,2928.5,2927.4,0.001]
[1764108064267,0.218,2928.2,2927.4,0.001]
[1764108064689,0.218,2928.2,2927.5,0.09436]
[1764108065060,3.41438632,2928.8,2927.5,0.09436]
[1764108065272,0.673,2928.9,2927.6,4.78578347]
[1764108065273,0.218,2928.7,2927.6,4.78578347]
[1764108066189,0.218,2928.7,2927.4,0.72659411]
[1764108066394,3.41460083,2928.6,2927.5,6.8317677]
[1764108066692,6.82920166,2928.6,2927.5,3.41588385]
[1764108067025,0.4825,2928.5,2927.5,3.41588385]
[1764108067417,0.4825,2928.5,2927.5,6.8317677]
[1764108067606,0.4825,2928.5,2927.5,3.41588385]
[1764108067809,0.4825,2928.5,2927.4,0.001]
[1764108068534,3.60477965,2928.9,2927.6,4.78578347]
[1764108068831,1.01634466,2928.8,2927.4,0.001]
[1764108069003,0.31584466,2928.7,2927.4,0.001]
[1764108069190,0.79834466,2928.7,2927.4,0.001]
[1764108069390,0.31584466,2928.6,2927.4,0.001]
[1764108069625,0.79834466,2928.6,2927.4,0.001]
[1764108069927,0.4825,2928.6,2927.4,0.001]
[1764108070134,0.218,2928.8,2927.4,0.001]
[1764108070135,0.79830487,2928.5,2927.4,0.001]
[1764108070302,0.4825,2928.5,2927.4,0.001]
[1764108070500,10.72700209,2928.4,2927.4,0.001]
[1764108070699,0.218,2928.3,2927.4,0.001]
[1764108070923,0.7005,2928.3,2927.4,0.001]
[1764108071428,0.4825,2928.2,2927.4,0.001]
[1764108071645,0.218,2928.3,2927.4,0.001]
[1764108071853,3.41483403,2928.4,2927.4,0.001]
[1764108071999,0.218,2928.3,2927.4,0.001]
[1764108072199,0.218,2928.3,2927.4,4.78678347]
[1764108072609,0.218,2928.3,2927.5,10.24765155]
[1764108073136,0.673,2928.9,2927.8,4.78578347]
[1764108073137,0.1905,2928.9,2927.8,4.78578347]
[1764108073322,0.7005,2928.8,2927.6,0.72559411]
[1764108074225,0.218,2928.8,2927.6,0.72559411]
[1764108074433,0.4825,2928.7,2927.6,0.72559411]
[1764108074639,3.89710076,2928.7,2927.7,6.83130102]
[1764108074820,7.31170152,2928.7,2927.7,6.83130102]
[1764108075344,3.89710076,2928.7,2927.7,6.83130102]
[1764108075532,3.63238814,2928.8,2927.7,11.61708449]
[1764108075735,0.1905,2929.2,2928.1,4.78578347]
[1764108075947,1.22149648,2930.2,2927.7,10.24695153]
[1764108075948,0.673,2929.8,2928.5,4.78578347]
[1764108076128,3.63136096,2929.7,2928.5,4.78578347]
[1764108076449,0.4825,2929.6,2928.5,4.78578347]
[1764108076615,0.218,2929.7,2928.6,6.82920166]
[1764108076820,0.218,2929.7,2928.6,10.24380249]
[1764108077115,3.6313729,2929.7,2928.6,10.24380249]
[1764108077372,0.218,2929.7,2928.6,10.24380249]
[1764108077931,3.63132712,2929.7,2928.6,10.24380249]
[1764108078127,4.11382712,2929.7,2928.6,6.82920166]
[1764108078326,4.11382048,2929.7,2928.6,10.24380249]
[1764108078634,4.11382048,2929.7,2928.0,3.41530054]
[1764108078635,7.04464096,2929.7,2928.0,3.41530054]
[1764108078841,0.4825,2929.6,2928.2,0.31236]
[1764108079042,3.63132048,2929.7,2928.2,0.218]
[1764108079244,0.218,2929.7,2928.4,5.0137655]
[1764108079549,0.218,2929.8,2928.8,0.09436]
[1764108079716,0.218,2929.8,2928.7,0.31236]
[1764108079916,0.218,2929.8,2928.7,0.09436]
[1764108080136,0.4825,2929.7,2928.4,0.218]
[1764108081048,3.89584864,2929.7,2928.5,10.24415229]
[1764108081276,0.4825,2929.7,2928.6,0.72559411]
[1764108081577,3.89583074,2929.7,2928.6,0.72559411]
[1764108081966,3.63125259,2929.8,2928.6,0.72559411]
[1764108083273,3.63125259,2929.8,2928.7,6.82896848]
[1764108083675,0.002,2929.7,2928.7,6.82896848]
[1764108084562,0.4501,2929.6,2928.7,6.82896848]
[1764108085864,3.8636295,2929.6,2928.7,6.82896848]
[1764108086875,0.4501,2929.6,2928.7,6.82896848]
[1764108087073,3.86354621,2929.6,2928.7,6.82896848]
[1764108087267,0.4501,2929.5,2928.7,3.41448424]
[1764108087466,0.4501,2929.5,2928.7,6.82896848]
[1764108087668,3.41533004,2929.7,2928.7,10.24345272]
[1764108088446,3.86543004,2929.7,2928.7,6.82896848]
[1764108088747,0.002,2929.7,2928.7,10.24345272]
[1764108089948,0.002,2929.7,2928.7,10.33781272]
[1764108090145,0.002,2929.7,2928.9,6.82850216]
[1764108090568,0.4521,2929.7,2928.9,3.41425108]
[1764108091160,0.4521,2929.7,2928.9,6.82850216]
[1764108092081,3.86552325,2929.7,2928.7,6.82896848]
[1764108092683,7.2789465,2929.7,2928.7,6.82896848]
[1764108092850,0.4501,2929.6,2928.7,6.82896848]
[1764108093046,0.4501,2929.6,2927.8,1.02587425]
[1764108093047,0.4501,2929.6,2928.4,0.72559411]
[1764108093380,0.4501,2929.6,2928.0,0.218]
[1764108094150,10.2406554,2929.5,2928.0,6.83060108]
[1764108094355,0.31612837,2929.4,2928.0,6.83060108]
[1764108094646,0.218,2929.3,2928.0,6.83060108]
[1764108094871,0.4501,2929.4,2928.1,1.13109811]
[1764108095069,0.218,2929.4,2928.2,0.09436]
[1764108095281,0.218,2929.4,2928.1,6.14486361]
[1764108095282,0.4501,2929.3,2928.1,6.14486361]
[1764108095584,0.4501,2929.3,2928.1,1.13109811]
[1764108095763,0.4501,2929.3,2928.1,0.72559411]
[1764108096178,0.4501,2929.3,2928.2,3.41506727]
[1764108096179,6.8278028,2929.2,2928.2,3.41506727]
[1764108096582,0.4501,2929.1,2928.2,3.41506727]
[1764108097476,0.4501,2929.1,2928.2,6.83013454]
[1764108097796,0.4501,2929.1,2928.2,3.41506727]
[1764108098484,3.41413451,2929.0,2928.2,6.83013454]
[1764108098689,0.218,2928.9,2928.2,6.83013454]
[1764108100485,3.41378486,2929.3,2928.1,0.09436]
[1764108100697,0.218,2929.1,2928.1,0.09436]
[1764108101500,0.218,2929.2,2928.2,0.94359411]
[1764108102568,0.218,2929.2,2928.3,6.8299013]
[1764108103604,0.218,2929.2,2928.3,10.24485195]
[1764108105606,3.63193841,2929.2,2928.3,6.8299013]
[1764108107078,0.218,2929.2,2928.3,6.8299013]
[1764108107413,3.63192157,2929.2,2928.3,6.8299013]
[1764108107795,4.08202157,2929.2,2928.3,7.0479013]
[1764108108003,0.6681,2929.2,2928.3,7.0479013]
[1764108108197,4.08203366,2929.2,2928.3,7.0479013]
[1764108110416,0.6681,2929.2,2928.3,7.0479013]
[1764108110617,4.08201569,2929.2,2928.3,7.0479013]
[1764108111416,0.6681,2929.2,2928.3,7.0479013]
[1764108111624,4.08201385,2929.2,2928.3,7.0479013]
[1764108111920,0.218,2929.2,2928.5,0.09436]
[1764108112440,0.218,2929.2,2928.4,0.81995411]
[1764108112626,0.002,2929.3,2928.4,0.81995411]
[1764108112627,0.22,2929.3,2928.6,0.09436]
[1764108112920,0.22,2929.3,2928.5,0.405504]
[1764108113136,0.4961,2928.5,2928.2,3.41506727]
[1764108113616,0.4633,2928.8,2928.1,0.001]
[1764108115923,3.41448424,2928.7,2928.1,0.001]
[1764108116321,0.4633,2928.6,2928.1,0.001]
[1764108118112,0.4961,2928.2,2928.1,0.001]
[1764108118512,0.9594,2928.2,2928.1,0.001]
[1764108120046,4.69168513,2928.2,2928.1,0.001]
[1764108122556,4.69168513,2928.2,2927.8,0.001]
[1764108122557,0.4705,2928.1,2927.8,0.001]
[1764108122755,0.6598,2927.9,2927.8,0.001]
[1764108122943,0.405504,2927.8,2925.5,2.53562204]
[1764108123143,0.405504,2927.8,2925.1,2.44126204]
[1764108123144,0.405504,2927.5,2925.1,2.44126204]
[1764108123364,0.53521786,2927.4,2925.0,6.83760682]
[1764108123525,0.31721786,2927.3,2925.3,0.72559411]
[1764108123721,0.31721786,2927.3,2925.2,5.0137655]
[1764108123722,0.53521786,2927.3,2925.2,5.0137655]
[1764108124050,10.24905195,2927.1,2925.5,6.8364382]
[1764108124224,6.8327013,2927.1,2925.6,0.72559411]
[1764108124425,0.4864,2927.0,2925.6,0.72559411]
[1764108124843,0.1893,2926.9,2925.5,6.8364382]
[1764108125045,0.218,2926.8,2925.6,0.72559411]
[1764108125242,0.7044,2926.8,2925.6,0.72559411]
[1764108125419,0.7044,2926.8,2925.6,0.81995411]
[1764108125817,0.218,2926.7,2925.7,0.405504]
[1764108126063,0.218,2926.7,2925.8,6.83573722]
[1764108126220,0.4864,2926.6,2925.7,3.41794677]
[1764108126741,0.4864,2926.6,2925.6,3.41809139]
[1764108126942,0.4864,2926.6,2925.5,3.41816533]
[1764108127242,0.4864,2926.6,2925.5,6.83638443]
[1764108128068,0.4864,2926.6,2925.0,5.95735961]
[1764108128069,3.41705108,2926.5,2925.1,4.14428065]
[1764108128231,3.41705108,2926.5,2925.1,7.56296719]
[1764108128232,0.4864,2926.4,2925.1,7.56296719]
[1764108128430,0.4864,2926.4,2924.4,3.41945855]
[1764108128431,0.6598,2925.2,2924.4,1.69496517]
[1764108128657,0.6598,2925.2,2924.4,0.66788272]
[1764108128658,0.218,2925.1,2924.4,0.66788272]
[1764108128866,0.7044,2925.1,2923.7,0.09436]
[1764108129180,0.7044,2925.1,2923.6,7.56647521]
[1764108129181,0.7044,2925.1,2923.6,3.42044055]
[1764108129359,0.6598,2923.7,2923.2,3.42090859]
[1764108129662,0.4864,2925.0,2923.3,0.03420791]
[1764108129849,0.4864,2925.0,2922.9,5.0137655]
[1764108129850,0.1893,2924.1,2922.9,5.0137655]
[1764108130169,0.1893,2924.1,2923.2,0.72559411]
[1764108130558,0.6757,2924.1,2923.1,6.84205124]
[1764108130756,4.09559314,2924.1,2923.1,6.84205124]
[1764108130957,0.4864,2924.0,2923.2,0.72559411]
[1764108131270,0.4864,2924.0,2921.3,2.739122]
[1764108131271,0.4705,2923.2,2921.3,2.739122]
[1764108131455,0.218,2923.6,2922.7,5.0137655]
[1764108131655,0.218,2923.6,2922.7,5.1081255]
[1764108131847,0.4864,2924.0,2922.8,0.72559411]
[1764108132042,0.4864,2924.0,2922.9,0.219]
[1764108132276,0.4083,2924.1,2923.2,5.0137655]
[1764108132570,0.12,2925.1,2923.3,0.72559411]
[1764108132571,0.1893,2924.4,2923.3,0.72559411]
[1764108132774,0.1893,2924.4,2923.4,0.219]
[1764108133135,0.1893,2924.4,2923.5,0.09436]
[1764108133733,0.4864,2924.6,2923.7,5.0137655]
[1764108133948,0.219,2924.7,2923.7,5.0137655]
[1764108134141,0.219,2924.7,2923.8,3.42020658]
[1764108134464,0.219,2924.7,2923.8,6.84041316]
[1764108134768,0.7054,2924.7,2923.8,6.84041316]
[1764108134950,0.7054,2924.7,2923.8,10.26061974]
[1764108135267,0.4864,2925.0,2923.9,0.219]
[1764108135673,0.12,2925.1,2923.9,0.219]
[1764108135674,0.12,2925.1,2924.2,5.0137655]
[1764108136386,0.12,2925.1,2923.9,0.94459411]
[1764108136387,0.12,2925.1,2924.9,5.0137655]
[1764108136540,0.4864,2926.4,2925.2,0.09436]
[1764108136739,0.9728,2926.4,2925.5,5.0137655]
[1764108137076,0.7054,2926.8,2925.6,0.72559411]
[1764108137372,0.7054,2926.8,2925.7,0.09436]
[1764108137573,3.63490878,2927.5,2926.1,0.72559411]
[1764108137749,0.4864,2926.8,2925.6,0.72559411]
[1764108137949,0.4864,2926.8,2925.7,0.219]
[1764108138170,0.4864,2926.8,2925.9,0.72559411]
[1764108138542,0.4864,2926.8,2926.1,0.72559411]
[1764108138957,3.90311954,2926.8,2926.1,0.72559411]
[1764108139282,0.4864,2926.8,2926.1,0.72559411]
[1764108141176,0.4864,2926.8,2926.2,3.4174014]
[1764108141968,3.90312127,2926.8,2926.1,0.72559411]
[1764108142369,3.90312127,2926.8,2926.1,4.14311042]
[1764108142778,3.41672127,2926.8,2926.1,3.41751631]
[1764108143078,0.4691,2926.7,2926.1,3.41751631]
[1764108143444,0.4511,2926.2,2925.6,0.001]
[1764108143754,0.1893,2926.9,2926.1,0.405504]
[1764108143972,0.1893,2926.9,2926.2,0.219]
[1764108144298,0.1893,2926.9,2926.0,4.80101256]
[1764108144299,0.4691,2926.8,2926.0,4.80101256]
[1764108144451,0.4691,2926.8,2926.1,0.219]
[1764108144645,0.4691,2926.8,2926.0,4.80101256]
[1764108145150,0.1893,2926.9,2926.0,4.80101256]
[1764108145542,0.6584,2926.9,2926.1,3.41751819]
[1764108145877,0.6584,2926.9,2925.6,3.41910226]
[1764108145878,7.49170502,2926.9,2925.6,3.4190628]
[1764108146078,0.38242901,2926.2,2925.6,3.4190628]
[1764108146264,7.24160502,2926.9,2925.6,3.4190628]
[1764108146265,0.4691,2926.5,2925.6,3.4190628]
[1764108146645,0.4691,2926.5,2925.7,4.80101256]
[1764108146874,0.4691,2926.5,2925.6,0.001]
[1764108147078,0.1946,2925.7,2925.6,0.001]
[1764108147450,0.1946,2925.9,2925.6,0.001]
[1764108147651,0.4691,2925.8,2925.6,0.001]
[1764108148160,0.4511,2925.7,2925.6,0.001]
[1764108148577,0.9202,2925.7,2925.6,0.001]
[1764108149686,4.55718543,2925.7,2925.6,0.001]
[1764108149861,11.39315629,2925.7,2924.1,0.219]
[1764108150056,0.4691,2925.6,2924.0,4.80101256]
[1764108150588,0.219,2925.5,2924.5,4.80101256]
[1764108150800,0.219,2925.5,2923.5,6.8411151]
[1764108150952,0.78316615,2925.4,2923.8,0.219]
[1764108151146,0.78316615,2925.4,2923.0,0.4691]
[1764108151147,0.6457,2923.6,2923.0,0.4691]
[1764108151386,0.6457,2923.6,2922.3,0.09436]
[1764108151387,0.4136,2923.6,2922.3,0.09436]
[1764108151597,0.219,2923.7,2923.0,4.80101256]
[1764108152287,0.4691,2923.6,2922.6,6.84316713]
[1764108152609,0.219,2923.7,2922.9,4.80101256]
[1764108152959,0.219,2923.8,2923.0,0.72559411]
[1764108153299,3.91621638,2924.7,2923.0,0.72559411]
[1764108153300,0.4691,2924.9,2923.5,0.81995411]
[1764108153451,0.1946,2925.0,2924.3,6.83924356]
[1764108153964,0.1946,2925.0,2924.3,3.41962178]
[1764108154161,0.1946,2925.0,2924.3,6.83924356]
[1764108154351,0.4691,2924.9,2923.9,0.72559411]
[1764108155053,0.219,2924.8,2924.0,4.80101256]
[1764108155480,0.219,2924.8,2924.1,6.83971136]
[1764108155692,0.219,2924.8,2924.1,10.25956704]
[1764108155889,0.4691,2924.7,2924.1,3.41985568]
[1764108156050,0.4691,2924.7,2924.0,3.41992693]
[1764108156452,0.4691,2924.7,2923.9,4.14565618]
[1764108156656,0.4691,2924.7,2923.9,7.56574578]
[1764108156947,0.4691,2924.7,2923.9,4.14565618]
[1764108157169,0.4691,2924.7,2923.5,4.80101256]
[1764108157487,3.41927101,2924.6,2923.6,6.8408811]
[1764108157863,0.4691,2924.5,2923.6,3.42044055]
[1764108158375,0.4691,2924.5,2924.0,0.001]
[1764108158858,0.4511,2924.1,2924.0,0.001]
[1764108159063,0.6701,2924.1,2924.0,0.001]
[1764108159382,0.9202,2924.1,2924.0,0.001]
[1764108159750,1.1392,2924.1,2924.0,0.001]
[1764108160190,4.55905568,2924.1,2924.0,0.001]
[1764108160484,1.1392,2924.1,2924.0,0.001]
[1764108161786,0.1946,2925.0,2924.0,0.001]
[1764108161787,0.4691,2924.6,2924.0,0.001]
[1764108161999,0.219,2924.5,2924.0,0.001]
[1764108162489,0.4691,2924.4,2924.0,0.001]
[1764108163264,0.219,2924.3,2924.0,0.001]
[1764108163809,0.6881,2924.3,2924.0,0.001]
[1764108164464,0.4691,2924.9,2924.0,0.001]
[1764108164669,0.219,2924.4,2924.0,0.001]
[1764108165492,0.6881,2924.4,2924.0,0.001]
[1764108165787,0.219,2924.4,2924.0,0.001]
[1764108166668,0.4691,2924.8,2924.0,0.001]
[1764108166868,0.219,2924.7,2924.0,0.001]
[1764108167899,4.08250348,2925.0,2924.0,0.001]
[1764108168205,0.219,2924.9,2924.1,4.80101256]
[1764108168573,0.219,2924.8,2924.1,4.80101256]
[1764108169774,0.219,2924.8,2924.2,6.83947746]
[1764108170499,0.4958,2924.7,2924.2,3.41973873]
[1764108171278,0.4958,2924.7,2924.1,3.41982764]
[1764108171477,0.4958,2924.7,2924.0,0.001]
[1764108171478,0.4834,2924.2,2924.0,0.001]
[1764108171676,0.7024,2924.1,2924.0,0.001]
[1764108172570,1.1982,2924.1,2924.0,0.001]
[1764108172774,0.219,2924.1,2924.0,0.001]
[1764108174410,0.7024,2924.1,2924.0,0.001]
[1764108175124,1.1982,2924.1,2924.0,0.001]
[1764108175331,0.7024,2924.1,2924.0,0.001]
[1764108176709,0.219,2924.1,2924.0,0.001]
[1764108177098,0.4958,2924.4,2924.0,0.001]
[1764108177099,0.219,2924.2,2924.0,0.001]
[1764108178806,3.41928145,2924.6,2924.0,0.001]
[1764108178807,0.219,2924.3,2924.0,0.001]
[1764108179132,0.219,2924.2,2924.0,0.001]
[1764108179435,0.4958,2924.7,2924.0,0.001]
[1764108179742,0.219,2924.3,2924.0,0.001]
[1764108180696,0.4958,2924.7,2924.0,0.001]
[1764108181118,0.219,2924.6,2924.0,0.001]
[1764108181527,0.219,2924.6,2924.0,0.72659411]
[1764108181834,0.219,2924.5,2924.0,0.72659411]
[1764108182431,0.219,2924.5,2924.1,3.41985568]
[1764108182634,0.6879,2924.5,2924.1,6.83971136]
[1764108182841,0.6879,2924.5,2924.1,3.41985568]
[1764108183043,0.6879,2924.5,2924.1,6.83971136]
[1764108183733,0.6879,2924.5,2924.1,3.41985568]
[1764108183941,0.1946,2925.0,2924.1,3.41985568]
[1764108183942,0.1946,2925.0,2924.2,0.03419738]
[1764108184106,0.4725,2924.2,2924.0,0.001]
[1764108184310,0.4725,2924.1,2924.0,0.001]
[1764108184510,0.219,2924.2,2924.0,0.001]
[1764108184733,0.4689,2924.7,2924.0,0.001]
[1764108184938,0.219,2924.6,2924.0,0.001]
[1764108185747,0.4725,2924.1,2924.0,0.001]
[1764108185908,0.6915,2924.1,2924.0,0.001]
[1764108186109,1.1604,2924.1,2924.0,0.001]
[1764108186433,0.6915,2924.1,2924.0,0.001]
[1764108186824,0.219,2924.1,2924.0,0.001]
[1764108187025,1.1604,2924.1,2924.0,0.001]
[1764108188607,4.58025568,2924.1,2924.0,0.001]
[1764108188931,0.9414,2924.1,2924.0,0.001]
[1764108189132,0.219,2924.1,2924.0,0.001]
[1764108189441,0.6915,2924.1,2924.0,0.001]
[1764108189655,1.1604,2924.1,2924.0,0.001]
[1764108190646,4.58025568,2924.1,2924.0,0.001]
[1764108191034,4.6773915,2924.1,2924.0,0.001]
[1764108191233,4.8963915,2924.1,2924.0,0.001]
[1764108192822,1.47653582,2924.1,2924.0,0.001]
[1764108193011,4.8963915,2924.1,2924.0,0.001]
[1764108193551,4.8963915,2924.1,2923.1,4.80101256]
[1764108193552,7.84653582,2924.1,2923.1,4.80101256]
[1764108193884,0.219,2924.0,2923.2,0.81995411]
[1764108194051,0.219,2923.9,2923.2,0.81995411]
[1764108194547,0.219,2923.9,2922.3,2.44126204]
[1764108194548,0.4725,2923.3,2922.3,2.44126204]
[1764108194756,0.1957,2922.7,2922.3,0.72559411]
[1764108195048,0.4725,2923.2,2922.3,0.72559411]
[1764108195266,0.22,2923.1,2922.3,0.72559411]
[1764108195617,0.4725,2922.4,2921.1,10.27009175]
[1764108195816,0.4689,2923.0,2921.5,4.80101256]
[1764108196023,0.4689,2922.9,2921.7,4.80101256]
[1764108196220,0.22,2922.8,2921.7,4.80101256]
[1764108196528,0.4689,2923.2,2922.1,5.52660667]
[1764108196717,0.22,2923.1,2922.1,4.80101256]
[1764108196925,0.22,2923.1,2922.9,0.001]
[1764108197123,0.22,2923.0,2922.9,0.001]
[1764108197328,0.6925,2923.0,2922.9,0.001]
[1764108197537,1.1614,2923.0,2922.9,0.001]
[1764108198632,4.58254266,2923.0,2922.9,0.001]
[1764108199252,0.9414,2923.0,2922.9,0.001]
[1764108199450,0.22,2923.0,2922.9,0.001]
[1764108199758,1.1614,2923.0,2921.6,0.72559411]
[1764108200359,1.1614,2923.0,2921.4,6.84603272]
[1764108200360,0.81354181,2922.9,2921.4,6.84603272]
[1764108200555,6.84275352,2922.8,2921.1,10.6786077]
[1764108200759,3.92007676,2922.8,2921.1,10.6786077]
[1764108200925,0.7187,2922.7,2921.1,6.8497358]
[1764108201121,0.3145838,2922.6,2921.1,6.8497358]
[1764108201433,0.3145838,2922.6,2921.2,0.72559411]
[1764108201434,0.4987,2922.6,2921.2,0.72559411]
[1764108201631,0.4987,2922.6,2921.1,0.003]
[1764108201632,0.6474,2921.2,2921.1,0.003]
[1764108201832,0.22,2921.2,2921.1,0.003]
[1764108202239,1.175,2921.2,2921.1,0.003]
[1764108202834,0.22,2921.2,2921.1,0.003]
[1764108203048,0.1911,2921.4,2921.1,0.003]
[1764108203260,0.4987,2921.7,2921.1,0.003]
[1764108203261,0.22,2921.2,2921.1,0.003]
[1764108203431,3.61348639,2922.0,2921.1,0.003]
[1764108203432,0.1911,2922.0,2921.1,0.003]
[1764108203638,0.4987,2922.7,2921.5,0.09436]
[1764108203851,0.22,2922.7,2921.9,0.72559411]
[1764108204043,0.22,2922.7,2922.0,0.09436]
[1764108204370,3.6160584,2923.7,2922.3,4.89295852]
[1764108204371,0.22,2923.2,2922.3,4.89295852]
[1764108204728,0.4987,2923.4,2922.4,6.8436901]
[1764108204929,0.22,2923.3,2922.4,3.42184505]
[1764108205228,0.22,2923.3,2922.4,6.8436901]
[1764108205428,0.4987,2923.2,2922.4,6.8436901]
[1764108205825,3.61607484,2923.7,2922.4,10.26553515]
[1764108206124,0.22,2923.6,2922.5,0.09436]
[1764108206351,0.7187,2923.6,2922.5,0.09436]
[1764108206567,0.22,2923.5,2922.4,6.8436901]
[1764108206869,3.42067455,2923.4,2922.2,10.99183186]
[1764108207166,0.4987,2923.3,2922.2,10.99183186]
[1764108207534,0.4987,2923.3,2921.2,18.49160136]
[1764108207762,0.4987,2923.3,2921.6,0.09436]
[1764108208346,0.4987,2923.3,2921.3,1.13109811]
[1764108208669,0.405504,2923.2,2921.3,0.72559411]
[1764108209055,0.405504,2923.2,2921.2,15.16271065]
[1764108209056,6.758236,2923.0,2921.4,3.42301636]
[1764108209254,0.22,2922.9,2921.4,6.84603272]
[1764108209564,2.4809,2922.7,2921.1,3.42632811]
[1764108209758,3.20649411,2922.7,2921.1,6.84969601]
[1764108209962,0.4987,2922.6,2921.1,6.84969601]
[1764108210979,6.84345594,2922.5,2921.1,0.003]
[1764108211161,0.22,2922.4,2921.1,0.003]
[1764108211362,0.7187,2922.4,2921.1,0.003]
[1764108211762,0.4987,2922.3,2921.1,0.003]
[1764108212757,0.22,2922.2,2921.1,0.003]
[1764108213182,0.4987,2922.1,2921.1,0.003]
[1764108213384,0.22,2922.0,2921.1,0.003]
[1764108213766,0.1911,2921.9,2921.1,0.003]
[1764108215293,0.22,2922.0,2921.2,0.72559411]
[1764108215597,0.22,2921.9,2921.2,0.72559411]
[1764108215897,3.61241898,2922.9,2921.2,0.72559411]
[1764108215898,0.22,2922.2,2921.2,0.72559411]
[1764108216255,0.7187,2922.2,2921.2,0.72559411]
[1764108216685,0.4987,2922.1,2921.2,0.72559411]
[1764108217205,0.6474,2921.3,2921.1,3.42630892]
[1764108217374,0.4111,2921.3,2921.1,0.72859411]
[1764108217565,0.4111,2921.3,2921.1,0.003]
[1764108217773,0.1911,2921.6,2921.1,3.42634619]
[1764108218078,0.22,2921.5,2921.1,6.84971409]
[1764108218604,0.22,2921.7,2921.1,6.84971409]
[1764108219019,0.22,2922.0,2921.2,0.72559411]
[1764108219222,0.22,2922.0,2921.3,10.26940059]
[1764108219811,0.1911,2921.9,2921.3,6.84626706]
[1764108220320,0.6898,2921.9,2921.3,3.42313353]
[1764108220687,0.6898,2921.9,2921.3,6.84626706]
[1764108221189,0.6898,2921.9,2921.3,3.42313353]
[1764108221383,4.11226507,2921.9,2921.3,3.42313353]
[1764108221589,4.11226507,2921.9,2921.1,6.84965584]
[1764108221789,0.6898,2921.9,2921.1,6.84965584]
[1764108223313,4.11223414,2921.9,2921.1,0.003]
[1764108223521,0.4563,2921.2,2921.1,0.003]
[1764108223723,0.4987,2921.8,2921.1,0.003]
[1764108223899,0.22,2921.7,2921.1,0.003]
[1764108224516,0.7187,2921.7,2921.1,0.003]
[1764108224838,0.4563,2921.2,2921.1,0.003]
[1764108225005,1.175,2921.2,2921.1,0.003]
[1764108225703,4.59825071,2921.2,2921.1,0.003]
[1764108226502,4.91309769,2921.2,2921.1,0.003]
[1764108226735,4.69309769,2921.2,2921.1,0.003]
[1764108226939,4.91309769,2921.2,2921.1,0.003]
[1764108229105,5.31860169,2921.2,2921.1,0.003]
[1764108229341,6.8469702,2921.0,2920.8,0.001]
[1764108229513,0.96224698,2920.9,2920.8,0.001]
[1764108229714,1.68094698,2920.9,2920.8,0.001]
[1764108230527,5.10454929,2920.9,2920.8,0.001]
[1764108230726,4.88454929,2920.9,2920.8,0.001]
[1764108231031,1.1461,2920.9,2920.8,0.001]
[1764108231210,4.78970231,2920.9,2920.8,0.001]
[1764108231410,5.10373564,2920.9,2920.8,0.001]
[1764108231636,11.95094026,2920.9,2918.9,0.72559411]
[1764108231832,0.80993333,2920.8,2918.9,0.72559411]
[1764108232034,0.22,2920.7,2918.9,0.72559411]
[1764108232268,0.4959,2920.7,2918.9,0.72559411]
[1764108232470,3.42407122,2920.5,2919.2,0.72559411]
[1764108232839,0.7159,2920.4,2919.2,0.72559411]
[1764108233176,0.7159,2920.4,2919.2,0.67559411]
[1764108233338,0.4959,2920.3,2919.2,0.67559411]
[1764108233540,0.22,2920.2,2919.2,0.67559411]
[1764108234171,0.7159,2920.2,2919.2,0.67559411]
[1764108234633,0.7159,2920.2,2919.3,6.85095742]
[1764108235460,0.4959,2920.1,2919.3,6.85095742]
[1764108235656,0.4959,2920.1,2919.3,3.42547871]
[1764108236237,0.4959,2920.1,2919.3,6.85095742]
[1764108236563,0.4959,2920.5,2920.2,0.001]
[1764108236762,0.22,2920.4,2920.2,0.001]
[1764108236961,0.4723,2920.3,2920.2,0.001]
[1764108237575,1.1882,2920.3,2920.2,0.001]
[1764108237976,0.9682,2920.3,2920.2,0.001]
[1764108238140,0.6923,2920.3,2920.2,0.001]
[1764108238479,0.22,2920.3,2920.2,0.001]
[1764108238641,0.1931,2920.9,2920.2,0.001]
[1764108238850,0.22,2920.8,2920.2,0.001]
[1764108240098,0.002,2920.9,2920.2,0.09536]
[1764108240686,0.002,2920.9,2920.3,6.84861144]
[1764108240888,0.002,2920.9,2920.4,0.72559411]
[1764108241187,0.002,2920.9,2920.5,0.09436]
[1764108241564,0.002,2920.9,2920.4,0.81995411]
[1764108241894,0.002,2920.9,2920.4,0.72559411]